Cogmind - Beta 12 @@@ ROGUE MODE // 2023.07.17 @ 21:27:46 Player: LustLizard Result: Self-destructed Performance ------------- Evolutions (4) 2000 Regions Visited (9) 1800 Robots Destroyed (106) 530 Value Destroyed (3207) 3207 Prototype IDs (9) 180 Alien Tech Used (0) 0 Bonus (1878) 1878 TOTAL SCORE: 9595 Bonus ------- High Alert Combat Kills 45 Follower Combat Kills 685 Entered Garrisons 200 Used RIF Installer 500 Entered DSFs 500 Friendly Fire -52 Cogmind --------- Core Integrity 612/850 Matter 48/300 Energy 225/225 System Corruption 0% Temperature Cool (33) Movement Rolling (143) Ox1 Location -6/Factory Parts ------- > --- POWER (2) -------- Fission-Nuclear Core > --- PROPULSION (4) --- Wheeled Armored-Carbon Exoskeleton > --- UTILITY (6) ------ Armored Scrap Engine Advanced Heat Sink Large Storage Unit Advanced Signal Interpreter Improved Medium Armor Plating > --- WEAPON (3) ------- Magnetic Acceleration Cannon Cld. Energy Plasma Construct/C > --- INVENTORY (15) --- Heat Sink Improved Heat Sink Improved Heat Sink Large Storage Unit Large Battery (200) Improved Sensor Array Improved Terrain Scan Processor Improved Medium Armor Plating Field Laser Field Laser Flak Gun Magnetic Acceleration Cannon Magnetic Acceleration Cannon Grenade Launcher Katana Peak State ------------ > --- POWER ------------ Fission-Nuclear Core > --- PROPULSION ------- Wheeled Armored-Carbon Exoskeleton > --- UTILITY ---------- Armored Scrap Engine Advanced Heat Sink Large Storage Unit Advanced Signal Interpreter Improved Medium Armor Plating > --- WEAPON ----------- Magnetic Acceleration Cannon Cld. Energy Plasma Construct/C > --- INVENTORY -------- Heat Sink Improved Heat Sink Improved Heat Sink Large Storage Unit Large Battery Improved Sensor Array Improved Terrain Scan Processor Improved Medium Armor Plating Field Laser Field Laser Flak Gun Magnetic Acceleration Cannon Magnetic Acceleration Cannon Grenade Launcher Katana [Rating: 71] Favorites ----------- Power Constructs Engine Ion Engine Power Core Constructs Propulsion Improved Aluminum Leg Treads Light Treads Leg Improved Aluminum Leg Wheel Constructs Utility Large Storage Unit Device Armored Scrap Engine Storage Large Storage Unit Processor Improved Terrain Scan Processor Protection Hardened Light Armor Plating Weapon Precision Beam Rifle Energy Gun Precision Beam Rifle Energy Cannon Constructs Ballistic Gun Assault Rifle Ballistic Cannon Magnetic Acceleration Cannon Launcher Grenade Launcher Slashing Weapon Katana Build | -11 -10 -10 -9 -9 -9 -7 -7 -7 -6 ------- Run | Jun Mat Min Mat Sto Rec Fac DSF Gar Fac Slots Evolved 8 | . . . 2 . . 4 . . 2 Power 1 | . . . . . . . . . 1 Propulsion 2 | . . . 1 . . 1 . . . Utility 4 | . . . 1 . . 2 . . 1 Weapon 1 | . . . . . . 1 . . . Parts Attached 75 | 6 12 4 23 13 3 4 . 5 5 Power 9 | 1 2 . 4 1 . . . 1 . Engine 8 | 1 2 . 4 1 . . . . . Core 1 | . . . . . . . . 1 . Reactor . | . . . . . . . . . . Propulsion 17 | 2 2 . 6 5 1 1 . . . Treads 2 | 1 1 . . . . . . . . Leg 13 | . . . 6 5 1 1 . . . Wheel 2 | 1 1 . . . . . . . . Hover . | . . . . . . . . . . Flight . | . . . . . . . . . . Utility 25 | 1 3 . 6 7 1 2 . . 5 Device 11 | . 1 . 2 3 1 1 . . 3 Storage 2 | 1 1 . . . . . . . . Processor 2 | . . . . . . 1 . . 1 Hackware . | . . . . . . . . . . Protection 10 | . 1 . 4 4 . . . . 1 Artifact . | . . . . . . . . . . Weapon 24 | 2 5 4 7 . 1 1 . 4 . Energy Gun 13 | 1 2 2 7 . 1 . . . . Energy Cannon . | . . . . . . . . . . Ballistic Gun 5 | 1 3 . . . . . . 1 . Ballistic Cannon 1 | . . . . . . . . 1 . Launcher 4 | . . 2 . . . . . 2 . Special Weapon . | . . . . . . . . . . Impact Weapon . | . . . . . . . . . . Slashing Weapon 1 | . . . . . . 1 . . . Piercing Weapon . | . . . . . . . . . . Special Melee Weapon . | . . . . . . . . . . Unidentified Prototypes 2 | . . . 2 . . . . . . Parts Lost 14 | . 1 . 2 2 . . . 9 . Power 4 | . 1 . . 1 . . . 2 . Propulsion 3 | . . . . . . . . 3 . Utility 4 | . . . 2 1 . . . 1 . Weapon 3 | . . . . . . . . 3 . Highest Loss Streak 9 | . 1 . 1 1 . . . 9 . To Critical Strikes . | . . . . . . . . . . Average Slot Usage (%) 87 | . 99 100 98 99 81 74 92 57 60 Engine 9 | . 13 14 11 10 10 7 7 3 . Treads 3 | . 14 14 . . . . . . . Leg 19 | . . . 32 33 32 27 30 5 . Wheel 4 | . 14 14 . . . . . 5 6 Device 10 | . 2 14 9 15 11 15 15 9 13 Storage 10 | . 14 14 11 11 11 7 7 7 6 Processor 1 | . . . . . . 2 7 7 5 Protection 5 | . 11 . 11 6 . . . . 6 Energy Gun 14 | . 6 27 22 22 16 8 15 . . Ballistic Gun 3 | . 20 . . . . . . 4 1 Ballistic Cannon 1 | . . . . . . . . 4 7 Naked Turns . | . . . . . . . . . . Heaviest Build 61 | 13 32 32 40 38 34 38 38 46 61 Greatest Support 49 | 16 16 10 39 39 39 49 49 44 44 Greatest Overweight (x) 3 | . 3 3 1 . 1 . . 1 1 Average Overweight (x) . | . 1 3 . . . . . . 1 Largest Inventory Capacity 15 | 8 15 15 15 15 15 15 15 15 15 Average Capacity 14 | 7 13 15 15 15 15 15 15 15 15 Most Carried 15 | 6 15 15 15 15 15 15 15 15 15 Average Carried 13 | 3 11 15 14 14 14 13 15 13 13 Final Capacity 15 | 8 15 15 15 15 15 15 15 15 15 Final Carried 15 | 6 15 15 15 15 15 15 15 12 15 Scrap Engine Consumption 56 | . . . . . 14 1 16 13 12 Constructs Created 7 | . . . . . 2 1 . 4 . Constructs Modified 12 | . . . . . 1 . . 4 7 Class Distribution -------------------- 68% | Mutant 14% | Construct 12% | Commander-Construct 4% | Commander-Mutant Dominant Class ---------------- Mutant | -10/Materials Mutant | -10/Mines Mutant | -9/Materials Mutant | -9/Storage Commander-Construct | -9/Recycling Commander-Mutant | -7/Factory Commander-Mutant | -7/DSF Construct | -7/Garrison Construct | -6/Factory Resources | -11 -10 -10 -9 -9 -9 -7 -7 -7 -6 ----------- Run | Jun Mat Min Mat Sto Rec Fac DSF Gar Fac Matter Collected 1745 | 209 363 90 190 144 40 . 62 350 297 Remotely . | . . . . . . . . . . Salvage Created 3235 | . 368 97 655 726 491 . 119 410 369 Parts 199 | . 29 13 55 33 24 . 3 13 29 Haulers Intercepted 1 | . . . . . 1 . . . . Recyclers Shooed 4 | . 2 . . 2 . . . . . Parts Field Recycled . | . . . . . . . . . . Retrieved Matter . | . . . . . . . . . . Parts Self-Destructed . | . . . . . . . . . . Prevented . | . . . . . . . . . . Kills | -11 -10 -10 -9 -9 -9 -7 -7 -7 -6 ------- Run | Jun Mat Min Mat Sto Rec Fac DSF Gar Fac Combat Hostiles Destroyed 88 | . 7 9 19 16 8 . 2 17 10 Guns 56 | . 7 3 18 13 8 . 2 5 . Cannons 15 | . . . . . . . . 5 10 AOE 12 | . . 6 . . . . . 6 . Classes Destroyed 16 | . 8 . 2 2 2 . 1 1 . Worker 6 | . 2 . 2 . . . . . 2 Builder 2 | . 1 . . . . . . . 1 Tunneler 2 | . 1 1 . . . . . . . Hauler 1 | . . . . . 1 . . . . Recycler 3 | . 1 . . 1 1 . . . . Operator 1 | . 1 . . . . . . . . Watcher 3 | . 1 . 2 . . . . . . Swarmer 29 | . 3 9 10 3 1 . . 2 1 Grunt 29 | . 4 . 3 5 1 . . 9 7 Brawler 2 | . . . 1 . 1 . . . . Duelist 6 | . . . . 1 1 . 1 3 . Protector 1 | . . . . 1 . . . . . Sentry 15 | . . . 5 6 2 . . 2 . Specialist 1 | . . . . . . . 1 . . Hunter 2 | . . . . . . . . 1 1 Programmer 3 | . . . . . 2 . . . 1 Best Kill Streak 8 | . 6 5 4 4 5 . 1 8 4 Combat Bots Only 8 | . 3 3 4 4 4 . 1 8 3 Max Kills in Single Turn 4 | . 1 2 2 1 1 . 1 4 2 Gunslinging 1 | . . . 1 . . . . . . Exploded 4 | . . 2 . . . . . 4 . Melee . | . . . . . . . . . . Uniques/NPCs Destroyed . | . . . . . . . . . . Combat | -11 -10 -10 -9 -9 -9 -7 -7 -7 -6 -------- Run | Jun Mat Min Mat Sto Rec Fac DSF Gar Fac Damage Taken 5704 | . 329 302 629 771 433 . 250 1768 1222 Core 816 | . 43 50 52 78 72 . 26 257 238 Absorbed by Shields 89 | . . . . . 27 . 58 4 . Redirected to Shielding 63 | . 10 . 53 . . . . . . Regen/Repaired (Parts) 964 | . 35 . 229 . 14 74 107 205 300 Core Remaining (%) 67 | 100 . 62 . . 49 . . 59 . Volleys Fired 290 | . 41 20 66 54 24 . 11 38 36 Largest 3 | . 2 2 2 2 2 . 2 3 2 Hottest 159 | . 130 130 130 122 122 . 114 136 159 Shots Fired 544 | . 79 36 128 108 39 . 22 62 70 Gun 436 | . 79 32 128 108 39 . 22 28 . Cannon 99 | . . . . . . . . 29 70 Launcher 9 | . . 4 . . . . . 5 . Special . | . . . . . . . . . . Kinetic 159 | . 62 . . . . . . 47 50 Thermal 370 | . 17 32 128 108 39 . 22 4 20 Explosive 9 | . . 4 . . . . . 5 . Electromagnetic 6 | . . . . . . . . 6 . Robot Hit Streak 23 | . 12 3 15 23 14 . 12 9 11 Robot Miss Streak 7 | . 3 7 6 1 3 . 2 4 3 Penetration Max . | . . . . . . . . . . Secondary Targets 4 | . 1 . 1 1 1 . . . . Max Gunslinging Chain 1 | . 1 . 1 1 1 . . . . Shots Hit Robots 342 | . 44 11 65 86 30 . 21 44 41 Core Hits 179 | . 22 10 29 28 14 . 12 43 21 Critical Kills 2 | . 1 . . . . . . . 1 Critical Parts Destroyed 1 | . 1 . . . . . . . . Critical Strikes 20 | . 2 1 4 4 2 . 3 1 3 Burn 14 | . . 1 4 4 2 . 3 . . Meltdown 1 | . . . . . . . . . 1 Destroy 2 | . 2 . . . . . . . . Blast 3 | . . . . . . . . 1 2 Melee Attacks 1 | . . . . . . . 1 . . Impact . | . . . . . . . . . . Slashing 1 | . . . . . . . 1 . . Piercing . | . . . . . . . . . . Sneak Attacks . | . . . . . . . . . . Combat Hostiles . | . . . . . . . . . . Follow-up Attacks . | . . . . . . . . . . Damage Inflicted 7706 | . 580 431 1020 1465 571 . 433 1485 1721 Guns 4528 | . 580 152 1020 1449 571 . 363 393 . Cannons 2322 | . . . . . . . . 622 1700 Explosions 749 | . . 279 . . . . . 470 . Melee 70 | . . . . . . . 70 . . Ramming 37 | . . . . 16 . . . . 21 Kinetic 2422 | . 430 . . . . . . 839 1153 Thermal 4287 | . 150 163 1020 1449 571 . 363 24 547 Explosive 738 | . . 268 . . . . . 470 . Electromagnetic 152 | . . . . . . . . 152 . Impact . | . . . . . . . . . . Slashing 70 | . . . . . . . 70 . . Piercing . | . . . . . . . . . . Highest Corruption 1 | . 1 1 . . 1 . . . . Average Corruption 1 | . 1 1 . . 1 . . . . Corruption Purged . | . . . . . . . . . . Corruption Blocked . | . . . . . . . . . . Effects 13 | . 4 4 . . 5 . . . . Message Errors 2 | . 1 . . . 1 . . . . Matter Fused 3 | . 2 1 . . . . . . . Heat Flow Errors 1 | . . 1 . . . . . . . Energy Discharges 4 | . 1 1 . . 2 . . . . Data Loss (minor) 2 | . . 1 . . 1 . . . . Data Loss (major) 1 | . . . . . 1 . . . . Overload Shots . | . . . . . . . . . . Overflow Damage 47 | . . 20 . . . . . 21 6 Projectiles 9 | . . . . . . . . 3 6 Explosions 38 | . . 20 . . . . . 18 . Melee . | . . . . . . . . . . Knockbacks 24 | . . . . 1 . . . 8 15 Impact 1 | . . . . 1 . . . . . Kinetic 20 | . . . . . . . . 6 14 Secondary 3 | . . . . . . . . 2 1 Self-Inflicted Damage 51 | . . . . . . . . 41 10 Shots 2 | . . . . . . . . 2 . Rammed 3 | . . . . . . . . . 3 Targets Rammed 4 | . . . . 1 . . . . 3 Kicked 1 | . . . . 1 . . . . . Crushed . | . . . . . . . . . . Highest Temperature 381 | . 54 278 308 207 381 . 12 242 336 Average Temperature 87 | . 23 118 88 68 110 . 7 74 110 Received Heat Transfer 1712 | . 165 . 186 258 59 . 83 586 375 Effects 10 | . . . 3 . 2 . . 3 2 Shutdowns 1 | . . . . . 1 . . . . Interference 8 | . . . 3 . . . . 3 2 Short Circuit 1 | . . . . . 1 . . . . Siege Activations . | . . . . . . . . . . Robots Corrupted 1 | . . . . . . . . 1 . Combat Hostiles 1 | . . . . . . . . 1 . Parts Fried . | . . . . . . . . . . Impact Corruptions . | . . . . . . . . . . Robots Melted 5 | . . . 1 3 . . . . 1 Combat Hostiles 4 | . . . 1 3 . . . . . Parts Melted 19 | . . 1 5 12 . . 1 . . Heat Transferred 10252 | . 361 494 2738 3336 1323 . 1452 . 548 Parts Sabotaged . | . . . . . . . . . . Parts Stolen . | . . . . . . . . . . Parts Stripped . | . . . . . . . . . . Power Chain Reactions . | . . . . . . . . . . Missiles Intercepted . | . . . . . . . . . . Alert | -11 -10 -10 -9 -9 -9 -7 -7 -7 -6 ------- Run | Jun Mat Min Mat Sto Rec Fac DSF Gar Fac Peak Influence 486 | . 133 486 397 479 184 51 216 320 303 Initial 184 | . . 9 113 138 184 49 35 162 168 Average 170 | . 68 270 267 304 65 50 89 167 188 Maximum Alert Level 2 | . . 2 1 2 . . 1 1 1 Low Security (%) 59 | 100 100 27 14 10 100 100 93 58 64 Level 1 36 | . . 54 85 64 . . 6 41 35 Level 2 4 | . . 17 . 25 . . . . . Level 3 . | . . . . . . . . . . Level 4 . | . . . . . . . . . . Level 5 . | . . . . . . . . . . High Security . | . . . . . . . . . . Max Security . | . . . . . . . . . . Sterilizations 1 | . . . . . . . 1 . . Squads Dispatched 12 | . . 1 2 2 . . 2 . 5 Investigation 1 | . . . 1 . . . . . . Extermination 1 | . . . . . . . . . 1 Reinforcement 6 | . . . 1 . . . 2 . 3 Assault 3 | . . 1 . 2 . . . . . Garrison 1 | . . . . . . . . . 1 Intercept . | . . . . . . . . . . Searches Triggered . | . . . . . . . . . . Construction Impeded 1 | . . . . . . . . . 1 Haulers Reinforced 1 | . . . . . . . . . 1 Active Scanning Responses . | . . . . . . . . . . Cargo Convoy Interrupts . | . . . . . . . . . . Stealth | -11 -10 -10 -9 -9 -9 -7 -7 -7 -6 --------- Run | Jun Mat Min Mat Sto Rec Fac DSF Gar Fac Distress Signals 3 | . . . 2 1 . . . . . Communications Jammed . | . . . . . . . . . . Distress Signals . | . . . . . . . . . . Times Spotted 151 | . 17 11 35 28 13 . 12 18 17 Peak Tracking Total 9 | . 5 3 4 8 4 . 5 5 9 Tactical Retreats 10 | . . . 4 3 . . 1 . 2 Traps | -11 -10 -10 -9 -9 -9 -7 -7 -7 -6 ------- Run | Jun Mat Min Mat Sto Rec Fac DSF Gar Fac Traps Triggered 5 | . 1 . 1 . . . 1 2 . Indirectly . | . . . . . . . . . . Trap Hack Attempts . | . . . . . . . . . . Triggered . | . . . . . . . . . . Disarmed . | . . . . . . . . . . Reprogrammed . | . . . . . . . . . . Reused . | . . . . . . . . . . Traps Extracted . | . . . . . . . . . . Installed . | . . . . . . . . . . Triggered . | . . . . . . . . . . Machines | -11 -10 -10 -9 -9 -9 -7 -7 -7 -6 ---------- Run | Jun Mat Min Mat Sto Rec Fac DSF Gar Fac Machines Disabled 6 | . 1 3 2 . . . . . . Max in Single Turn 3 | . 1 3 1 . . . . . . Phase Generator 1 | . . . . . . . . 1 . Machines Repaired . | . . . . . . . . . . Machines Sabotaged . | . . . . . . . . . . Overloaded Fab Kills . | . . . . . . . . . . Hacking | -11 -10 -10 -9 -9 -9 -7 -7 -7 -6 --------- Run | Jun Mat Min Mat Sto Rec Fac DSF Gar Fac Machines Accessed 31 | . 7 1 8 7 5 2 . 1 . Terminals 28 | . 6 1 7 7 5 1 . 1 . Fabricators . | . . . . . . . . . . Repair Stations 3 | . 1 . 1 . . 1 . . . Recycling Units . | . . . . . . . . . . Scanalyzers . | . . . . . . . . . . Garrison Access . | . . . . . . . . . . Total Hacks 98 | . 17 2 30 21 20 5 . 3 . Successful 48 | . 9 . 16 8 11 3 . 1 . Failed 50 | . 8 2 14 13 9 2 . 2 . Catastrophic 10 | . 1 . 3 4 2 . . . . Database Lockouts . | . . . . . . . . . . Manual 55 | . 7 2 20 14 12 . . . . Terminals 83 | . 14 2 21 21 20 2 . 3 . Fabricators . | . . . . . . . . . . Repair Stations 15 | . 3 . 9 . . 3 . . . Recycling Units . | . . . . . . . . . . Scanalyzers . | . . . . . . . . . . Garrison Access . | . . . . . . . . . . Terminal Hacks 19 | . 2 . 5 4 6 1 . 1 . Part Schematic 1 | . . . . . 1 . . . . Robot Schematic 1 | . . . . . 1 . . . . Robot Analysis 5 | . . . 2 1 2 . . . . Prototype ID Bank 2 | . 1 . . . 1 . . . . Open Door 3 | . . . . 3 . . . . . Open DSF 1 | . . . . . . 1 . . . Branch Access Points 1 | . . . 1 . . . . . . Emergency Access Points 1 | . . . . . . . . 1 . Unreport Threat 2 | . . . 1 . 1 . . . . Locate Traps 1 | . 1 . . . . . . . . Recall Reinforcements 1 | . . . 1 . . . . . . Fabricator Hacks . | . . . . . . . . . . Repair Station Hacks 12 | . 2 . 8 . . 2 . . . Scan Component 6 | . 1 . 4 . . 1 . . . Repair 6 | . 1 . 4 . . 1 . . . Recycling Unit Hacks . | . . . . . . . . . . Scanalyzer . | . . . . . . . . . . Garrison Access Hacks . | . . . . . . . . . . Unauthorized Hacks 17 | . 5 . 3 4 5 . . . . Terminals 17 | . 5 . 3 4 5 . . . . Assimilate 9 | . 3 . 1 2 3 . . . . Botnet 8 | . 2 . 2 2 2 . . . . Fabricators . | . . . . . . . . . . Repair Stations . | . . . . . . . . . . Recycling Units . | . . . . . . . . . . Scanalyzers . | . . . . . . . . . . Garrison Access . | . . . . . . . . . . Data Cores Recovered 1 | . 1 . . . . . . . . Used 1 | . 1 . . . . . . . . Hacking Detections 30 | . 7 1 8 6 5 2 . 1 . Full Trace Events 1 | . . . . 1 . . . . . Feedback Events . | . . . . . . . . . . Feedback Blocked . | . . . . . . . . . . Robot Schematics Acquired 1 | . . . . . 1 . . . . Robots Built . | . . . . . . . . . . Authchips . | . . . . . . . . . . Time . | . . . . . . . . . . Total Robot Build Rating . | . . . . . . . . . . Part Schematics Acquired 1 | . . . . . 1 . . . . Parts Built . | . . . . . . . . . . Authchips . | . . . . . . . . . . Time . | . . . . . . . . . . Total Part Build Rating . | . . . . . . . . . . Parts Repaired 6 | . 1 . 4 . . 1 . . . Time 192 | . 26 . 134 . . 32 . . . Parts Recycled . | . . . . . . . . . . Recycled Matter . | . . . . . . . . . . Retrieved Matter . | . . . . . . . . . . Retrieved Components . | . . . . . . . . . . Parts Scanalyzed . | . . . . . . . . . . Part Schematics Acquired . | . . . . . . . . . . Parts Damaged . | . . . . . . . . . . Bothacking | -11 -10 -10 -9 -9 -9 -7 -7 -7 -6 ------------ Run | Jun Mat Min Mat Sto Rec Fac DSF Gar Fac Used RIF Installer 1 | . . . . . . . . 1 . Robots Hacked . | . . . . . . . . . . Non-combat . | . . . . . . . . . . Combat . | . . . . . . . . . . Robot Hacks Applied . | . . . . . . . . . . Relay Couplers Released . | . . . . . . . . . . Fabnet Peak Effective % . | . . . . . . . . . . Robots Rewired 29 | . . . . . 29 . . . . Allies Hacked 1 | . . . . . 1 . . . . Hacks Repelled . | . . . . . . . . . . Allies | -11 -10 -10 -9 -9 -9 -7 -7 -7 -6 -------- Run | Jun Mat Min Mat Sto Rec Fac DSF Gar Fac Total Allies 35 | . . 4 . 2 29 . . . . Largest Group 29 | . . 4 4 2 29 29 28 18 1 Highest-Rated Group 352 | . . 71 71 62 352 352 342 203 10 Highest-Rated Ally 31 | . . 31 31 31 27 27 27 27 10 Total Orders . | . . . . . . . . . . Ally Attacks 146 | . . 13 37 19 12 . 63 2 . Total Damage 2095 | . . 144 453 251 203 . 1023 21 . Kills 29 | . . 6 7 2 5 . 9 . . Allies Corrupted 1 | . . . . 1 . . . . . Allies Melted . | . . . . . . . . . . Intel | -11 -10 -10 -9 -9 -9 -7 -7 -7 -6 ------- Run | Jun Mat Min Mat Sto Rec Fac DSF Gar Fac Robot Analysis Total 5 | . . . 2 1 2 . . . . Derelict Logs Recovered 1 | . . 1 . . . . . . . Drone Launches . | . . . . . . . . . . Drone Recoveries . | . . . . . . . . . . Exploration | -11 -10 -10 -9 -9 -9 -7 -7 -7 -6 ------------- Run | Jun Mat Min Mat Sto Rec Fac DSF Gar Fac Turns Passed 6305 | 55 884 638 1322 599 1464 135 157 395 656 Spaces Moved 3702 | 41 632 460 744 312 820 69 94 188 342 Core 2 | 2 . . . . . . . . . Treads . | . . . . . . . . . . Legs 2086 | . . . 744 312 820 69 94 47 . Wheels 1614 | 39 632 460 . . . . . 141 342 Hover . | . . . . . . . . . . Flight . | . . . . . . . . . . Fastest Speed 50 | 50 95 125 120 120 120 123 123 100 143 Average Speed 122 | 97 109 125 120 120 122 123 123 134 143 Slowest Speed 194 | 100 125 125 190 120 190 124 123 194 143 Overloaded Moves . | . . . . . . . . . . Propulsion Burnouts . | . . . . . . . . . . Robots Hopped . | . . . . . . . . . . Cave-ins Triggered . | . . . . . . . . . . Exploration Rate (%) 55 | 3 95 87 76 50 98 2 81 52 8 Regions Visited 9 Branch Regions 3 Pre-discovered Areas . | . . . . . . . . . . Known Exits Taken 2 | . . . 1 . . 1 . . . Unknown Exits Taken 5 | 1 1 1 . 1 1 . . . . Scrap Searched 1 | . . 1 . . . . . . . Spaces Dug . | . . . . . . . . . . Terrain Destroyed 82 | . . 54 . . . . . 7 21 Melee . | . . . . . . . . . . Projectile 22 | . . . . . . . . 1 21 AOE 60 | . . 54 . . . . . 6 . Terrain Rammed . | . . . . . . . . . . Walls Destroyed . | . . . . . . . . . . Machines Disabled . | . . . . . . . . . . Actions | -11 -10 -10 -9 -9 -9 -7 -7 -7 -6 --------- Run | Jun Mat Min Mat Sto Rec Fac DSF Gar Fac Total 4956 | 52 755 485 1050 429 1244 118 115 271 437 Wait 457 | . 40 2 179 42 80 43 6 19 46 Move 3692 | 40 631 459 743 311 819 68 93 186 342 Hop . | . . . . . . . . . . Pick Up 58 | 6 17 . 17 2 6 3 2 2 3 Fast Attach 18 | 6 5 . 3 . . 2 . 1 1 Attach 23 | . 4 . 7 2 3 2 . 3 2 Detach 2 | . 1 . . . . . . . 1 Swap 34 | . 3 4 13 11 . . . 1 2 Drop 59 | . 13 . 22 6 10 . 2 5 1 Fire 290 | . 41 20 66 54 24 . 11 38 36 Melee 1 | . . . . . . . 1 . . Ram 3 | . . . . . . . . . 3 Kick 1 | . . . . 1 . . . . . Crush . | . . . . . . . . . . Escape Stasis 16 | . . . . . . . . 16 . Rewire 302 | . . . . . 302 . . . . Trap . | . . . . . . . . . . Miscellaneous . | . . . . . . . . . . Route ------- -11/Junkyard -10/Materials (discovered 4 exits: *Mat x3 / *Min) -10/Mines (discovered 2 exits: *Mat x2) -9/Materials (discovered 6 exits: [*Mat x2] / *Min x2 / *Sto x2) -9/Storage (discovered 2 exits: [*Mat] / *Rec) -9/Recycling -7/Factory -7/DSF -7/Garrison -6/Factory History --------- Turn | Location | Event 24 | -11/Junkyard | Discovered new exit (range 16) 56 | -11/Junkyard | Entered Materials 189 | -10/Materials | Discovered new exit (range 12) 326 | -10/Materials | Build established: Mutant 410 | -10/Materials | Discovered new exit (range 8) 532 | -10/Materials | Repaired Assault Rifle 652 | -10/Materials | Discovered new exit (range 15) 779 | -10/Materials | Discovered new exit (range 16) 940 | -10/Materials | Entered Mines 964 | -10/Mines | Met a Derelict bent on vengeance 971 | -10/Mines | Learned 2 Materials zone layouts 1087 | -10/Mines | Discovered new exit (range 15) 1179 | -10/Mines | Assisted by bots powering up and referring to "LRC-V3" 1290 | -10/Mines | Discovered new exit (range 7) 1467 | -10/Mines | Met a Derelict testing a Signal Generator 1578 | -10/Mines | Entered Materials 1578 | -9/Materials | Accompanied by 4 allies 1578 | -9/Materials | Evolved 2 slots: Propulsion x1, Utility x1 1800 | -9/Materials | Discovered new exit (range 12) 1865 | -9/Materials | Discovered new exit (range 14) 1971 | -9/Materials | Discovered new exit (range 15) 2205 | -9/Materials | Discovered new exit (range 16) 2489 | -9/Materials | Identified exit to Mines 2489 | -9/Materials | Identified exit to Storage 2561 | -9/Materials | Repaired Imp. Aluminum Leg 2594 | -9/Materials | Repaired Imp. Aluminum Leg 2628 | -9/Materials | Repaired Imp. Aluminum Leg 2667 | -9/Materials | Repaired Imp. Heat Sink 2847 | -9/Materials | Discovered new exit (range 15) 2900 | -9/Materials | Entered Storage 3309 | -9/Storage | Met a pair of Derelict thieves 3423 | -9/Storage | Discovered new exit (range 8) 3495 | -9/Storage | Used back door to open Recycling access 3495 | -9/Storage | Discovered new exit (range 5) 3499 | -9/Storage | Entered Recycling 3501 | -9/Recycling | Found Scrap Engine 3796 | -9/Recycling | Discovered new exit (range 16) 4545 | -9/Recycling | Build established: Commander-Construct 4713 | -9/Recycling | Core integrity fell below 50% 4963 | -9/Recycling | Entered Factory 4963 | -7/Factory | Accompanied by 29 allies 4963 | -7/Factory | Evolved 4 slots: Propulsion x1, Utility x2, Weapon x1 5004 | -7/Factory | Repaired Imp. Aluminum Leg 5087 | -7/Factory | Identified exit to DSF 5098 | -7/Factory | Entered DSF 5098 | -7/DSF | Accompanied by 28 allies 5130 | -7/DSF | Additional patrols routed to DSF 5191 | -7/DSF | Discovered new exit (range 15) 5235 | -7/DSF | Sterilization system engaged 5255 | -7/DSF | Ambient heat levels rising (+10) 5255 | -7/DSF | Entered Garrison 5255 | -7/Garrison | Accompanied by 18 allies 5277 | -7/Garrison | Build established: Commander-Mutant 5315 | -7/Garrison | Installed Relay Interface Framework 5330 | -7/Garrison | Phase Generator disabled 5368 | -7/Garrison | Triggered checkpoint 5395 | -7/Garrison | Lost 9 parts (2p3n1u3w) 5485 | -7/Garrison | Triggered checkpoint 5506 | -7/Garrison | Triggered checkpoint 5509 | -7/Garrison | Destroyed 8 combat bots 5586 | -7/Garrison | Triggered checkpoint 5631 | -7/Garrison | Discovered new exit (range 10) 5650 | -7/Garrison | Entered Factory 5650 | -6/Factory | Accompanied by 1 ally 5650 | -6/Factory | Evolved 2 slots: Power x1, Utility x1 5723 | -6/Factory | Build established: Construct 6273 | -6/Factory | Garrison activated, responded to threat 6306 | -6/Factory | Self-destructed Last Messages --------------- 06236_ Acquired 57 matter. 06237_ Acquired 2 matter. 06238_ Acquired 4 matter. 06273_ G-50 Soldier Adv. Heat Sink blasted off. 06273_ G-50 Soldier calls for garrison reinforcements. 06273_ ALERT: Activating Garrison Access F001. 06273_ A-15 Conveyor calls for reinforcements. 06273_ ALERT: Hostile activity reported, dispatching reinforcements to area. 06276_ G-50 Soldier knocked back. 06287_ G-50 Soldier overheating. 06288_ G-50 Soldier heat short circuits Carbon-fiber Leg. 06288_ G-50 Soldier destroyed. 06297_ U-05 Engineer builds a Wall. 06300_ O-24 Administrator: "IFF HANDSHAKE FAILED. SECURING TERMINAL." 06300_ R-10 Processor collects Adv. Heat Sink. 06301_ U-05 Engineer destroyed. 06303_ ALERT: Hostiles spotted, dispatching reinforcements to Terminal F007. 06304_ U-05 Engineer builds a Wall. Map ----- +----------------------------------------------------+ | ?????????????????????????????????????????????????? | | ?????????????????????????????????????????????????? | | ?????????????????????????????????????????????????? | | ?????????????????????????????????????????????????? | | ?????????????????????????????????????????????????? | | ?????????????????????????????????????????????????? | | ?????????????????????????????????????????????????? | | ?????????????????????????????????????????????????? | | ????????????????????????????????????????????????? | | ????????????????????????????????????????????????? | | "???????????????????????????????????????????????? | | """? ?????????????????????????????????????????? | | ?????????????????????????????????????????? | | ??????????????????????????????????????????? | | ?????????????????????????????????????????? | | #????????????????????????????????????????? | | "" "" #????????????????????????????????????????? | | ""S"" #????????????????????????????????????????? | | """" ??????????????????????????????????????????? | | ????????????????????????????????????????????? | | ##/###########################+########??????????? | | g ?????????? | | h s ?????????? | | """ % g =????????? | | """ ! % % Y ????????? | | """ !%! @ u % R ????????? | | F" ###+###################;+#####?????????????? | | """ #? ??????????###?????? ??????????????? | | "" #? "?????????????????????? #???????????? | | # ""???????????????????????? ????????????? | | # ""?????????????????????????????????????? | | # """????????????????????????????????????? | | # ?????????????????????????????????????? | | """ # ??????????????????????????????????????? | | """ # ??????????????????????????????????????? | | """ # ??????????????????????????????????????? | | ??" # !!!??????????????????????????????????????? | | ?? # !!!??????????????????????????????????????? | | ?? # !! ??????????????????????????????????????? | | ??????#####??????????????????????????????????????? | | ?????????????????????????????????????????????????? | | ?????????????????????????????????????????????????? | | ?????????????????????????????????????????????????? | | ?????????????????????????????????????????????????? | | ?????????????????????????????????????????????????? | | ?????????????????????????????????????????????????? | | ?????????????????????????????????????????????????? | | ?????????????????????????????????????????????????? | | ?????????????????????????????????????????????????? | | ?????????????????????????????????????????????????? | +----------------------------------------------------+ Best States ------------- Heat Dissipation 56 Energy Generation 15 Energy Capacity 280 Matter Stores 300 Matter Capacity 300 Sight Range 16 Robot Scan Range 15 Terrain Scan Density 110 Armor Coverage 225 Core Shielding 20 Propulsion Shielding 33 Evasion (%) 55 Item Schematics ----------------- Hrd. Medium Armor Plating | -9/Recycling | Hacked Robot Schematics ------------------ L-31 Rogue | -9/Recycling | Hacked Fabricated ------------ Nothing Alien Tech Used ----------------- None Achievements -------------- None Challenges ------------ None Game ------ Seed SensorContainmentDiverter Manual? 0 Play Time 00:57:55 Cumulative 116.6 hours Start 2023.07.17 @ 20:30:01 End 2023.07.17 @ 21:27:46 Sessions 1 Manual Loads 0 Difficulty Rogue Special Mode None Game No. 108 Rogue 108 Adventurer 0 Explorer 0 Win Type - Total 1 Types 1/0/0/0/0/0/0/0/0 Lore% 44 Gallery% 50 Achievement% 37 Wizard Run 0 Options --------- ASCII 0 Keyboard 0 Movement Numpad Keybinds 0 Fullscreen 1 Font 18/SmallcapsGlow Map View 76x50 Tactical HUD 1 Map Filters NONE Filters NONE Steam 1 RUN: 3b75158a-368b-45e7-8f87-a8dd53c793db